[Event "1000 GM Labor Day Super Swiss 2024"]
[Site "San Jose"]
[Date "2024.09.03"]
[Round "7.13"]
[White "Sivakumar, Shaaketh"]
[Black "Widjaja, Luke"]
[Result "1-0"]
[Annotator "RC"]
[ECO "E05"]
[WhiteElo "2307"]
[BlackElo "2056"]
[PlyCount "106"]
[EventDate "2024.08.30"]
[EventType "swiss"]
[EventCountry "USA"]
[SourceTitle "playchess.com"]
[Source "ChessBase"]
[SourceQuality "1"]
[TimeControl "5400+30"]

1. d4 {[%emt 0:03:50]} d5 {[%emt 0:00:02]} 2. c4 {[%emt 0:00:12]} e6 {[%emt 0:00:02]} 3. Nf3 {[%emt 0:00:11]} Nf6 {[%emt 0:00:03]} 4. g3 {[%emt 0:00:30]} Be7 {[%emt 0:00:04]} 5. Bg2 {[%emt 0:00:14]} O-O {[%emt 0:00:05]} 6. O-O {[%emt 0:00:12]} dxc4 {[%emt 0:00:50]} 7. Qc2 {[%emt 0:00:42]} a6 {[%emt 0:00:03]} 8. a4 {[%emt 0:00:14]} c5 {[%emt 0:02:19]} 9. Qxc4 {[%emt 0:01:18]} cxd4 {[%emt 0:00:34]} 10. Rd1 {[%emt 0:00:17]} Nc6 {[%emt 0:05:09]} 11. Bf4 {[%emt 0:02:51]} Qb6 {[%emt 0:07:51]} 12. Nbd2 {[%emt 0:06:40]} Nd7 {[%emt 0:04:31]} 13. a5 {[%emt 0:05:00]} Nxa5 {[%emt 0:03:56]} 14. Qxd4 {[%emt 0:01:39]} Bc5 {[%emt 0:05:32]} 15. Qc3 {[%emt 0:00:40]} Nc6 {[%emt 0:18:44]} 16. Ne4 {[%emt 0:00:10]} Bb4 {[%emt 0:04:36]} 17. Qc2 {[%emt 0:00:02]} e5 {[%emt 0:03:13]} 18. Be3 {[%emt 0:00:38]} Qc7 {[%emt 0:00:32]} 19. Rac1 {[%emt 0:02:35]} Be7 {[%emt 0:02:20]} 20. Nc3 {[%emt 0:01:23]} Nf6 {[%emt 0:01:50]} 21. Ng5 {[%emt 0:00:02]} g6 {[%emt 0:01:54]} 22. Nd5 {[%emt 0:00:26]} Nxd5 {[%emt 0:00:21]} 23. Bxd5 {[%emt 0:00:05]} Kg7 {[%emt 0:08:22]} 24. Qb3 {[%emt 0:03:20]} Bd8 {[%emt 0:05:00]} 25. Nxf7 {[%emt 0:03:25]} Rxf7 {[%emt 0:00:14]} 26. Bxf7 {[%emt 0:00:01]} Qxf7 {[%emt 0:00:07]} 27. Bh6+ {[%emt 0:00:11]} Kg8 {[%emt 0:01:15]} 28. Qxf7+ {[%emt 0:00:05]} Kxf7 {[%emt 0:00:03]} 29. Rxc6 {[%emt 0:00:02]} bxc6 {[%emt 0:00:26]} 30. Rxd8 {[%emt 0:00:01]} c5 {[%emt 0:04:16]} 31. Rh8 {[%emt 0:00:26]} Kf6 {[%emt 0:01:10]} 32. Bd2 {[%emt 0:02:06]} h5 {[%emt 0:03:41]} 33. Bc3 {[%emt 0:00:09]} Bb7 {[%emt 0:01:10]} 34. Rh7 {[%emt 0:00:09]} Be4 {[%emt 0:00:34]} 35. Rc7 {[%emt 0:02:42]} Rd8 {[%emt 0:03:16]} 36. f3 {[%emt 0:00:18]} Ba8 {[%emt 0:00:09]} 37. Rxc5 {[%emt 0:00:07]} Rd5 {[%emt 0:01:17]} 38. Rc8 {[%emt 0:00:02]} Rd1+ {[%emt 0:00:56]} 39. Kf2 {[%emt 0:00:35]} Bd5 {[%emt 0:00:16]} 40. Rc5 {[%emt 0:00:13]} Kf7 {[%emt 0:04:14]} 41. Bxe5 {[%emt 0:01:28]} Ke6 {[%emt 0:00:43]} 42. Bc3 {[%emt 0:00:14]} Kd6 {[%emt 0:00:44]} 43. Ra5 {[%emt 0:00:12]} Bc4 {[%emt 0:00:10]} 44. Ra4 {[%emt 0:00:32]} Kc5 {[%emt 0:00:41]} 45. b3 {[%emt 0:01:21]} Bxb3 {[%emt 0:00:30]} 46. Rxa6 {[%emt 0:00:01]} Rc1 {[%emt 0:01:14]} 47. Bd2 {[%emt 0:01:32]} Rc2 {[%emt 0:00:07]} 48. Ke3 {[%emt 0:00:29]} Bf7 {[%emt 0:00:42]} 49. Ra7 {[%emt 0:00:54]} Be8 {[%emt 0:00:28]} 50. Re7 {[%emt 0:00:12]} Bb5 {[%emt 0:00:34]} 51. Rc7+ {[%emt 0:00:07]} Bc6 {[%emt 0:00:05]} 52. Rg7 {[%emt 0:00:05]} Be8 {[%emt 0:00:15]} 53. Rg8 {[%emt 0:00:03]} Kd5 {[%emt 0:09:50]} 1-0

[Event "1000 GM Labor Day Super Swiss 2024"]
[Site "San Jose"]
[Date "2024.09.03"]
[Round "7.14"]
[White "Gui, Suyuan"]
[Black "Garcia Guerrero, Isaac Antonio"]
[Result "0-1"]
[Annotator "TA"]
[ECO "B27"]
[WhiteElo "2033"]
[BlackElo "2291"]
[PlyCount "116"]
[EventDate "2024.08.30"]
[EventType "swiss"]
[EventCountry "USA"]
[SourceTitle "playchess.com"]
[Source "ChessBase"]
[SourceQuality "1"]
[TimeControl "5400+30"]

{[%evp 11,116,12,7,0,17,8,24,24,39,-29,-14,-28,-25,-25,-18,-55,-53,-68,-32,-85,-83,-90,-83,-89,-52,-46,-45,-55,-33,-74,-72,-81,-62,-41,-58,-75,-69,-77,-67,-69,-67,-97,-84,-105,-102,-103,-107,-111,-106,-129,-105,-116,-104,-110,-101,-102,-64,-95,-20,-18,-11,-74,-72,-63,-81,-81,-81,-87,-85,-87,-25,-48,-29,-25,0,-215,-215,-215,-67,-58,-27,-129,-144,-189,-183,-381,-356,-687,-708,-532,-657,-650,-664,-1042,-985,-1318,-1140,-1365,-1332,-1507,-1493,-1284,-350,-1041,-1152,-5435,-4575]} 1. e4 {[%emt 0:00:17]} c5 {[%emt 0:00:21]} 2. Nf3 {[%emt 0:00:17]} g6 {[%emt 0:00:06]} 3. d4 {[%emt 0:00:10]} cxd4 {[%emt 0:00:05]} 4. Qxd4 {[%emt 0:00:05]} Nf6 {[%emt 0:00:05][%cal Bg8f6,Bf6d5,Bd5c7,Bc7e6][%mdl 32]} 5. e5 {[%emt 0:00:07]} Nc6 {[%emt 0:00:03]} 6. Qa4 {[%emt 0:00:07]} Nd5 {[%emt 0:00:08]} 7. Qb3 {[%emt 0:00:05]} Nc7 {[%emt 0:00:18]} 8. Nc3 {[%emt 0:00:42]} Ne6 {[%emt 0:01:32] Inhibits Bf4.} 9. Be3 {[%emt 0:05:50] White has an edge.} Bg7 {[%emt 0:00:35]} 10. Qd5 {[%emt 0:02:03]} (10. h4 $14) 10... Qc7 $11 {[%emt 0:00:57][%cal Ob7b6]} 11. Nb5 {[%emt 0:04:46]} Qb8 {[%emt 0:01:20][%cal Rc6e5]} 12. O-O-O {[%emt 0:01:27]} a6 {[%emt 0:13:11]} 13. Nbd4 {[%emt 0:02:16]} Nxe5 {[%emt 0:02:31]} 14. h4 {[%emt 0:05:33]} (14. Nxe6 fxe6 15. Qd4 b5) 14... Qc7 {[%emt 0:24:21]} 15. h5 {[%emt 0:06:22]} (15. Nxe5 $15 Bxe5 16. h5) 15... d6 $17 {[%emt 0:02:14]} 16. Be2 {[%emt 0:14:39]} Bd7 {[%emt 0:05:35]} 17. Nxe5 {[%emt 0:04:53]} Bxe5 {[%emt 0:06:18]} 18. Bg4 {[%emt 0:02:15]} Rc8 {[%emt 0:06:53]} 19. c3 {[%emt 0:03:22]} Qc4 {[%emt 0:02:40]} 20. Qxc4 {[%emt 0:10:15]} Rxc4 {[%emt 0:00:14]} 21. Be2 {[%emt 0:01:13]} Rc8 {[%emt 0:02:00]} 22. Nxe6 {[%emt 0:00:44]} Bxe6 {[%emt 0:03:29]} 23. Bf3 {[%emt 0:00:48]} Rc7 {[%emt 0:02:48]} 24. a3 {[%emt 0:01:53]} O-O {[%emt 0:03:55]} 25. hxg6 {[%emt 0:01:08]} fxg6 {[%emt 0:01:23]} 26. Be4 {[%emt 0:02:51]} Bf4 {[%emt 0:02:00]} 27. Bxf4 {[%emt 0:00:45]} Rxf4 {[%emt 0:00:08]} 28. f3 {[%emt 0:00:36]} Kg7 {[%emt 0:02:08]} 29. Rde1 {[%emt 0:02:09][%cal Oe4g6]} Bb3 {[%emt 0:00:40]} 30. Bc2 {[%emt 0:02:05]} Bf7 {[%emt 0:01:01]} 31. Kd2 {[%emt 0:01:29]} Rf6 {[%emt 0:01:45]} 32. Rh4 {[%emt 0:02:17]} e5 {[%emt 0:01:43]} 33. Rb4 {[%emt 0:01:05]} b5 {[%emt 0:01:58]} 34. a4 {[%emt 0:00:56]} Rf4 {[%emt 0:03:10]} (34... Rc4 $17 {With the idea ...Rxb4.} 35. axb5 Rxb4 36. cxb4 axb5) 35. Rxf4 $11 {[%emt 0:04:44]} exf4 {[%emt 0:00:01]} 36. axb5 {[%emt 0:00:31]} (36. Re4 $11) 36... axb5 {[%emt 0:00:09][%mdl 4096] Endgame. KRB-KRB} 37. Re4 {[%emt 0:00:13]} Rc4 {[%emt 0:03:10]} 38. Re7 {[%emt 0:00:29]} Kf6 {[%emt 0:00:24]} 39. Rd7 {[%emt 0:00:25]} Rc6 $1 {[%emt 0:00:14]} 40. Bd3 {[%emt 0:01:24]} Rb6 {[%emt 0:00:33] Against Rb7} (40... h6 $17) 41. b4 {[%emt 0:01:01]} h5 {[%emt 0:00:59]} 42. Ra7 {[%emt 0:00:50]} g5 {[%emt 0:00:53]} 43. Ke2 $2 {[%emt 0:02:08] [#]} (43. Ra5 $11) 43... g4 $1 $19 {[%emt 0:00:43]} 44. Ra5 {[%emt 0:00:58] [#]} Be8 {[%emt 0:00:34]} ({Black should try} 44... g3 $1 $19 {Hoping for ...h4.} 45. Rxb5 Rxb5 46. Bxb5 Ke5) 45. Ra8 $1 $15 {[%emt 0:00:19]} Bd7 {[%emt 0:03:36]} 46. fxg4 {[%emt 0:05:51]} (46. Rg8 $1 $11 {keeps the balance.}) 46... hxg4 $17 {[%emt 0:00:13]} 47. Be4 {[%emt 0:00:53]} Be6 {[%emt 0:01:40]} 48. Ra7 $2 {[%emt 0:01:32]} (48. Bd3) 48... Rb8 $19 {[%emt 0:00:24]} 49. Bd3 $2 {[%emt 0:01:19]} (49. Bc6) 49... Bd5 {[%emt 0:00:35]} 50. Rd7 {[%emt 0:00:58]} Bxg2 {[%emt 0:01:50]} 51. Rxd6+ {[%emt 0:00:05]} Kg5 {[%emt 0:00:09]} 52. Kf2 {[%emt 0:00:19]} Ba8 {[%emt 0:00:34]} 53. Rg6+ {[%emt 0:01:05]} Kh5 {[%emt 0:00:11]} 54. Rg7 {[%emt 0:00:27]} g3+ {[%emt 0:00:46]} 55. Kf1 {[%emt 0:00:18]} Kh4 {[%emt 0:01:01]} 56. Bf5 {[%emt 0:00:40]} g2+ $2 {[%emt 0:00:49]} (56... Rd8 {And now ...g2+ would win.} 57. Bd7 Be4 (57... Bf3 $2 58. Rf7 $19)) 57. Kf2 {[%emt 0:00:20]} (57. Rxg2 Bxg2+ 58. Kxg2) 57... Rd8 {[%emt 0:00:30] Threatens to win with ...Rd2+.} 58. Rg4+ {[%emt 0:00:41]} Kh5 {[%emt 0:00:09] Weighted Error Value: White=0.60/Black=0.26 (precise) .  Loses game:     	White=1     	---        Mistake:       	White=6     	Black=3      Inaccurate:     	White=6     	Black=4      OK:         	White=14    	Black=9      Best:        	White=2     	Black=4      Strong:       	White=1     	Black=2} 0-1

[Event "1000 GM Labor Day Super Swiss 2024"]
[Site "San Jose"]
[Date "2024.09.03"]
[Round "7.15"]
[White "Guo, Ethan"]
[Black "Tang, Dylan"]
[Result "1/2-1/2"]
[Annotator "TA"]
[ECO "C45"]
[WhiteElo "2211"]
[BlackElo "2092"]
[PlyCount "49"]
[EventDate "2024.08.30"]
[EventType "swiss"]
[EventCountry "USA"]
[SourceTitle "playchess.com"]
[Source "ChessBase"]
[SourceQuality "1"]
[TimeControl "5400+30"]

{[%evp 14,49,0,0,0,0,2,0,0,0,0,-27,20,0,8,0,8,0,0,0,19,0,10,0,0,0,6,-27,-25,-26,-25,-23,-27,-26,-27,-36,-36,-17]} 1. e4 {[%emt 0:00:00]} e5 {[%emt 0:01:12]} 2. Nf3 {[%emt 1:31:30]} Nc6 {[%emt 0:00:01]} 3. d4 {[%emt 0:00:00]} exd4 {[%emt 0:00:02]} 4. Nxd4 {[%emt 0:00:00]} Bc5 {[%emt 0:00:25]} 5. Nb3 {[%emt 0:00:00]} Bb6 {[%emt 0:00:02]} 6. Nc3 {[%emt 0:00:00]} Nf6 {[%emt 0:00:10]} 7. Bg5 {[%emt 0:00:00][%cal Bc1g5,Bg5h4,Bh4g3][%mdl 32]} h6 {[%emt 0:04:51]} 8. Bh4 {[%emt 0:03:00]} d6 {[%emt 0:06:03][%cal Of6e4]} 9. Qe2 {[%emt 0:00:00]} Be6 {[%emt 0:03:28]} 10. O-O-O {[%emt 0:00:00]} g5 {[%emt 0:03:23] The position is equal.} 11. Bg3 {[%emt 0:00:00] [#] And now e5 would win.} Qe7 {[%emt 0:00:41]} 12. e5 {[%emt 0:00:00]} Bxb3 {[%emt 0:06:41]} (12... dxe5 $142 13. h4 Rg8) 13. exf6 $11 {[%emt 0:00:00]} Qxe2 {[%emt 0:00:10]} 14. Bxe2 {[%emt 0:00:00]} Be6 {[%emt 0:01:03]} 15. h4 {[%emt 0:00:00] Black must now prevent hxg5.} O-O-O {[%emt 0:05:10]} 16. Nd5 {[%emt 0:00:00]} Rdg8 {[%emt 0:09:56]} 17. Bb5 {[%emt 0:00:00]} gxh4 {[%emt 0:10:08]} 18. Rxh4 {[%emt 0:00:00] Bxc6 would now be deadly.} Bxd5 {[%emt 0:01:42]} 19. Rxd5 {[%emt 0:00:00]} Rg6 {[%emt 0:00:39]} 20. Rf5 {[%emt 0:00:00]} Nd4 {[%emt 0:02:45]} 21. Bd3 {[%emt 0:00:00] Strongly threatening Rff4.} Rxg3 {[%emt 0:00:11]} 22. fxg3 {[%emt 0:00:00]} Nxf5 {[%emt 0:00:04]} 23. Bxf5+ {[%emt 0:00:00]} Kd8 {[%emt 0:00:10]} 24. Re4 {[%emt 0:00:00]} Re8 {[%emt 0:00:16] Repels Re7} 25. Rxe8+ {[%emt 0:00:00] Weighted Error Value: White=0.10 (very precise) /Black=0.06 (flawless) .  Mistake:       	---       	Black=1      Inaccurate:     	White=2     	---        OK:         	White=5     	Black=11     Best:        	White=1     	Black=1} 1/2-1/2

[Event "1000 GM Labor Day Super Swiss 2024"]
[Site "San Jose"]
[Date "2024.09.03"]
[Round "7.16"]
[White "Piasetski, Leon"]
[Black "Biyiasas, Theodore"]
[Result "1-0"]
[Annotator "TA"]
[ECO "A11"]
[WhiteElo "2167"]
[BlackElo "1973"]
[PlyCount "67"]
[EventDate "2024.08.30"]
[EventType "swiss"]
[EventCountry "USA"]
[SourceTitle "playchess.com"]
[Source "ChessBase"]
[SourceQuality "1"]
[TimeControl "5400+30"]

{[%evp 9,67,15,36,44,54,42,60,21,44,3,2,13,10,16,0,0,0,-2,0,13,52,60,50,58,95,101,87,85,112,108,117,118,210,200,207,165,170,167,172,162,217,206,217,212,205,214,218,210,206,211,231,223,791,776,1273,1273,1254,1232,5329,5297]} 1. c4 {[%emt 0:00:16]} c6 {[%emt 0:00:16]} 2. Nf3 {[%emt 0:02:12]} d5 {[%emt 0:00:14]} 3. e3 {[%emt 0:00:09]} Nf6 {[%emt 0:00:30]} 4. Nc3 {[%emt 0:00:59]} a6 {[%emt 0:01:45]} 5. Qc2 {[%emt 0:08:09]} Bg4 {[%emt 0:06:50]} 6. Ne5 {[%emt 0:02:01]} Bh5 {[%emt 0:02:57]} 7. cxd5 {[%emt 0:00:45]} Nxd5 {[%emt 0:08:08]} 8. Qb3 {[%emt 0:22:58] White is slightly better.} Qb6 {[%emt 0:17:02]} (8... Nd7 {feels hotter.} 9. Nxd5 Nc5 10. Qb6 Qxd5 11. d4 Rd8) 9. Nxd5 {[%emt 0:04:06]} Qxb3 {[%emt 0:00:17]} 10. axb3 {[%emt 0:00:22]} cxd5 {[%emt 0:00:23]} 11. Bb5+ {[%emt 0:00:18]} Kd8 {[%emt 0:00:03]} 12. d4 $36 {[%emt 0:00:55][%mdl 2048] White has the initiative.} f6 {[%emt 0:00:59]} 13. Nd3 {[%emt 0:00:35]} e6 {[%emt 0:04:11]} 14. Bd2 {[%emt 0:01:52]} Nc6 {[%emt 0:02:00]} 15. Bxc6 {[%emt 0:03:13]} bxc6 {[%emt 0:00:15]} 16. Bb4 {[%emt 0:00:19]} Bg6 {[%emt 0:14:24] [#] White stays focused until the end.} 17. Bxf8 $1 {[%emt 0:01:40]} Rxf8 {[%emt 0:00:50][%cal Bh8f8,Bf8b8,Bb8b5][%mdl 32]} 18. Nc5 {[%emt 0:00:36][%csl LRa6,LRe6]} Ke7 {[%emt 0:00:39]} 19. Kd2 {[%emt 0:00:17]} (19. Nxa6 $2 Bd3 20. Kd2 Bxa6 $19) (19. Rxa6 $2 Rxa6 20. Nxa6 Ra8 $19) 19... Rfb8 {[%emt 0:02:04]} 20. Ra4 {[%emt 0:01:41] White is more active.} ({Worse is} 20. Nxa6 Rxb3 21. Ra2 e5 $17 (21... Bd3 22. Nc5 $11)) 20... a5 {[%emt 0:13:43]} (20... e5 $16 {might work better.}) 21. Rha1 $18 {[%emt 0:00:29]} Rb5 {[%emt 0:00:03]} 22. Kc1 {[%emt 0:01:14]} e5 {[%emt 0:01:19] [#]} 23. b4 $1 {[%emt 0:03:07][%cal Bb3b4,Bb4a5,Ba5a6,Ba6a7][%mdl 544]} exd4 {[%emt 0:00:14]} 24. exd4 {[%emt 0:00:12]} (24. Rxa5 Raxa5 25. Rxa5 Rxb4 $19) 24... Re8 {[%emt 0:03:22]} (24... Rab8 $142) 25. bxa5 {[%emt 0:05:36] Black must now prevent a6.} Kd6 {[%emt 0:03:19]} 26. b3 {[%emt 0:00:20]} Rbb8 {[%emt 0:04:51]} 27. Kd2 {[%emt 0:01:53]} Re7 {[%emt 0:01:12]} 28. Re1 {[%emt 0:01:06]} Rxe1 {[%emt 0:00:10]} 29. Kxe1 {[%emt 0:00:05] KRB-KRN} Bc2 {[%emt 0:00:14]} 30. a6 {[%emt 0:03:37][%cal Oa4b4] Rb4! is the strong threat.} Bf5 $2 {[%emt 0:03:06] [#]} (30... Ra8 31. Rb4 Ra7) 31. Rb4 $3 {[%emt 0:01:00][%mdl 512] White is clearly winning.} Kc7 {[%emt 0:06:33]} (31... Ra8 32. Rb7) 32. a7 {[%emt 0:00:38]} Ra8 {[%emt 0:03:10]} 33. Rb7+ {[%emt 0:00:09]} Kd6 {[%emt 0:00:19]} 34. Rxg7 {[%emt 0:00:27] Weighted Error Value: White=0.06 (flawless) /Black=0.21 (precise) .  Mistake:       	---       	Black=3      Inaccurate:     	White=2     	Black=4      OK:         	White=13    	Black=7      Best:        	White=2     	Black=1      Strong:       	White=1     	---        Brilliant:      	White=1     	---} 1-0

[Event "1000 GM Labor Day Super Swiss 2024"]
[Site "San Jose"]
[Date "2024.09.03"]
[Round "7.17"]
[White "Garduno Huerta, Joshua Emiliano"]
[Black "Karthi, Jashith"]
[Result "1-0"]
[Annotator "TA"]
[ECO "E35"]
[WhiteElo "2056"]
[BlackElo "2066"]
[PlyCount "85"]
[EventDate "2024.08.30"]
[EventType "swiss"]
[EventCountry "USA"]
[SourceTitle "playchess.com"]
[Source "ChessBase"]
[SourceQuality "1"]
[TimeControl "5400+30"]

{[%evp 16,85,12,7,9,8,11,0,13,2,20,10,78,81,138,125,159,161,254,257,258,254,253,257,273,270,312,330,628,404,386,385,401,386,650,577,827,616,491,388,389,381,489,533,515,491,537,539,494,536,530,445,1007,1007,1745,1418,1302,975,1294,960,2895,1297,1324,1225,1314,1288,1306,1295,1241,1227,1137,1129]} 1. d4 {[%emt 0:09:38]} Nf6 {[%emt 0:00:11]} 2. c4 {[%emt 0:00:07]} e6 {[%emt 0:00:02]} 3. Nc3 {[%emt 0:00:37]} Bb4 {[%emt 0:00:06]} 4. Qc2 {[%emt 0:00:06]} d5 {[%emt 0:00:03]} 5. cxd5 {[%emt 0:00:25]} exd5 {[%emt 0:00:07]} 6. Bg5 {[%emt 0:00:10]} h6 {[%emt 0:00:37]} 7. Bxf6 {[%emt 0:01:58]} Qxf6 {[%emt 0:01:45]} 8. a3 {[%emt 0:00:27]} Bxc3+ {[%emt 0:00:14]} 9. Qxc3 {[%emt 0:00:17]} O-O {[%emt 0:03:04]} 10. e3 {[%emt 0:00:15]} Be6 {[%emt 0:03:02]} 11. Bd3 {[%emt 0:03:54]} Qg5 {[%emt 0:04:43] The position is equal.} 12. g3 {[%emt 0:01:42]} Rc8 {[%emt 0:03:41]} 13. Ne2 {[%emt 0:01:12]} c5 {[%emt 0:01:56]} 14. dxc5 $16 {[%emt 0:01:52]} Nd7 {[%emt 0:03:11]} (14... Qe7 $142) 15. b4 {[%emt 0:03:45][%cal Bb2b4,Bb4b5][%mdl 32]} Bg4 {[%emt 0:28:39]} 16. O-O {[%emt 0:10:27]} b6 {[%emt 0:12:29]} (16... Re8 {was called for.} 17. Bb5 Rad8) 17. c6 $18 {[%emt 0:02:43]} Bh3 {[%emt 0:00:47]} 18. Rfc1 {[%emt 0:21:13]} Ne5 {[%emt 0:02:10]} 19. Nd4 {[%emt 0:02:07] aiming for f4.} Qh5 {[%emt 0:05:10][%cal Oc8c6]} 20. b5 {[%emt 0:06:28]} a6 {[%emt 0:11:02]} 21. a4 {[%emt 0:01:56]} (21. bxa6 Nf3+ 22. Nxf3 Qxf3 $11) 21... Be6 $2 {[%emt 0:02:44]} (21... a5 22. Be2 Bg4) 22. Be2 {[%emt 0:04:01]} Bg4 {[%emt 0:00:41]} 23. Bxg4 {[%emt 0:02:15]} Nxg4 {[%emt 0:00:01]} 24. Nf3 {[%emt 0:24:55]} Re8 $2 {[%emt 0:00:50]} (24... Nf6) 25. Kg2 {[%emt 0:00:00]} Re6 {[%emt 0:03:20]} 26. c7 {[%emt 0:00:00]} Rc8 {[%emt 0:00:13]} 27. Ra2 {[%emt 0:00:00]} axb5 {[%emt 0:05:40]} 28. axb5 {[%emt 0:00:00]} Re7 {[%emt 0:00:09][%cal Be6e7,Be7e8,Be8c8][%mdl 32]} 29. Ra7 {[%emt 0:00:00][%cal Ba2a7,Ba7b7,Bb7b8,Bb8c8][%mdl 32] White is clearly winning.} Qf5 {[%emt 0:02:30]} 30. Rb7 {[%emt 0:00:00]} Qe4 {[%emt 0:01:04] ...Ne5 would now be deadly.} 31. Rb8 {[%emt 0:00:00]} (31. Rxb6 Rcxc7 32. Rc6 (32. Qxc7 $2 Rxc7 33. Rxc7 Ne5 $19) 32... Rb7 $14) 31... Ree8 {[%emt 0:00:07][%cal Og4h2] [#]} 32. Rxc8 $1 {[%emt 0:00:08]} (32. Rxb6 $2 {loses.} Ne5 33. Qd4 Qxf3+ 34. Kg1 Qe2 $19) 32... Rxc8 {[%emt 0:00:00]} 33. Qd4 {[%emt 0:00:16]} Nf6 {[%emt 0:03:02]} (33... Kh7 $142 34. Rc6 (34. Qxb6 Ne5 $11) 34... Kg8) 34. Qxb6 {[%emt 0:01:39] Black must now prevent Qa6.} d4 {[%emt 0:00:49]} 35. Qxd4 {[%emt 0:00:42]} Qb7 {[%emt 0:00:06]} 36. Qd8+ {[%emt 0:01:05]} Kh7 {[%emt 0:00:05] [#]} 37. b6 $1 {[%emt 0:00:07] Threatens to win with Rd1.} Ne8 {[%emt 0:00:34] [#]} (37... Nd5 38. Qxc8) 38. Qxc8 $3 {[%emt 0:01:35][%mdl 512]} Qxc8 {[%emt 0:00:01] [#]} 39. b7 $1 {[%emt 0:00:01][%mdl 512]} Qxb7 {[%emt 0:00:10]} 40. c8=Q {[%emt 0:00:06]} ({Not} 40. c8=R Qb5 41. h3 Qd7 $18) 40... Qe4 {[%emt 0:00:10]} 41. Qc2 {[%emt 0:00:07]} Qxc2 {[%emt 0:00:04]} 42. Rxc2 {[%emt 0:00:01]} Nd6 {[%emt 0:00:08]} 43. h4 {[%emt 0:00:19] Black got outplayed after the opening.   Weighted Error Value: White=0.40/Black=0.54.  Mistake:       	---       	Black=6      Inaccurate:     	White=1     	Black=2      OK:         	White=13    	Black=4      Best:        	White=3     	Black=1      Strong:       	White=1     	---} 1-0

[Event "1000 GM Labor Day Super Swiss 2024"]
[Site "San Jose"]
[Date "2024.09.03"]
[Round "7.18"]
[White "Champsi, Imran"]
[Black "Zuluaga Mancilla, Cesar"]
[Result "0-1"]
[Annotator "TA"]
[ECO "A29"]
[WhiteElo "2012"]
[BlackElo "2166"]
[PlyCount "64"]
[EventDate "2024.08.30"]
[EventType "swiss"]
[EventCountry "USA"]
[SourceTitle "playchess.com"]
[Source "ChessBase"]
[SourceQuality "1"]
[TimeControl "5400+30"]

{[%evp 19,64,-20,17,0,32,3,15,-32,-33,-46,-23,-29,-32,-45,-32,-45,-45,-42,-44,-46,-47,-39,-39,-50,-48,-70,-49,-73,-70,-75,-45,-56,-55,-50,-14,-238,-228,-232,-239,-232,-222,-253,-231,-847,-843,-829,-825]} 1. c4 {[%emt 0:00:01]} e5 {[%emt 0:09:38]} 2. Nc3 {[%emt 0:00:02]} Nf6 {[%emt 0:00:06]} 3. g3 {[%emt 0:00:03]} d5 {[%emt 0:00:05]} 4. cxd5 {[%emt 0:00:16]} Nxd5 {[%emt 0:00:06]} 5. Bg2 {[%emt 0:00:44]} Nb6 {[%emt 0:00:02]} 6. Nf3 {[%emt 0:01:37]} Nc6 {[%emt 0:00:05]} 7. d3 {[%emt 0:00:39]} Be7 {[%emt 0:00:06]} 8. O-O {[%emt 0:02:14]} O-O {[%emt 0:00:07]} 9. Bd2 {[%emt 0:06:54]} Re8 {[%emt 0:00:24]} 10. Rc1 {[%emt 0:01:27]} Bf8 {[%emt 0:00:25]} 11. Ne4 {[%emt 0:02:46]} Nd4 {[%emt 0:02:38]} 12. Nc5 {[%emt 0:17:33]} c6 {[%emt 0:01:22]} 13. Nb3 {[%emt 0:02:02]} (13. Nxd4 $11 Qxd4 14. b4) 13... Nxb3 $15 {[%emt 0:02:53]} 14. Qxb3 {[%emt 0:03:07]} Be6 {[%emt 0:00:07]} 15. Qc2 {[%emt 0:00:29]} f6 {[%emt 0:00:18] Prevents Ng5.} 16. a3 {[%emt 0:02:32]} Rc8 {[%emt 0:02:19]} 17. Bc3 {[%emt 0:03:14]} c5 {[%emt 0:00:34]} 18. Rfd1 {[%emt 0:00:27]} Qd7 {[%emt 0:00:24]} 19. Nd2 {[%emt 0:06:11]} Qf7 {[%emt 0:01:29]} 20. a4 {[%emt 0:08:30]} Nd5 {[%emt 0:03:27]} 21. Nc4 {[%emt 0:00:38]} b6 {[%emt 0:00:57]} 22. b3 {[%emt 0:02:56]} Red8 {[%emt 0:00:38]} 23. e3 {[%emt 0:02:27]} Bg4 {[%emt 0:05:00]} 24. Rd2 {[%emt 0:01:15]} Qh5 {[%emt 0:06:48]} 25. d4 {[%emt 0:03:36]} exd4 {[%emt 0:02:18]} 26. exd4 {[%emt 0:01:56]} Bf5 {[%emt 0:10:44]} 27. Qd1 {[%emt 0:04:55] Now White is beyond hope.} (27. Be4 $11 Bxe4 28. Qxe4) 27... Qxd1+ $19 {[%emt 0:00:34]} 28. Rdxd1 {[%emt 0:00:05] [#] Hoping for Bxd5+.} Nxc3 {[%emt 0:00:01]} 29. Rxc3 {[%emt 0:00:02]} cxd4 {[%emt 0:00:32]} 30. Rcc1 {[%emt 0:00:31]} Bb4 {[%emt 0:00:46]} 31. Nb2 $2 {[%emt 0:07:18] White is weak on the dark squares} (31. Bf3) 31... Rxc1 {[%emt 0:02:32]} 32. Rxc1 {[%emt 0:00:01]} Ba3 {[%emt 0:00:22] Weighted Error Value: White=0.66/Black=0.09 (flawless) .  Loses game:     	White=1     	---        Mistake:       	White=2     	---        Inaccurate:     	White=1     	Black=3      OK:         	White=4     	Black=9      Best:        	---       	Black=3} 0-1